bitfinex/quotes_BTCUSD_20250610
["timestamp","ask_amount","ask_price","bid_price","bid_amount"]
[1749537902594,1.77788803,109610.0,109600.0,0.04186666]
[1749537902815,2.31343506,109610.0,109600.0,0.0677068]
[1749537903017,2.31343506,109610.0,109600.0,0.06770832]
[1749537903018,2.40523292,109610.0,109600.0,0.06770832]
[1749537903225,2.40523292,109610.0,109600.0,0.06770882]
[1749537903428,2.31343506,109610.0,109600.0,0.06770887]
[1749537903637,2.31343506,109610.0,109600.0,0.05069925]
[1749537903998,2.31343506,109610.0,109600.0,0.02485925]
[1749537904328,2.31343506,109610.0,109600.0,0.04187048]
[1749537904498,2.31343506,109610.0,109600.0,0.04187001]
[1749537904709,2.31343506,109610.0,109600.0,0.02485925]
[1749537905112,2.31343506,109610.0,109600.0,0.04187009]
[1749537905332,0.77019397,109610.0,109600.0,0.04187009]
[1749537905501,1.77788803,109610.0,109600.0,0.04187049]
[1749537905872,1.77788803,109610.0,109600.0,0.02485925]
[1749537906207,1.77788803,109610.0,109600.0,0.04187084]
[1749537906428,1.77788803,109610.0,109600.0,0.04187087]
[1749537906429,1.68196803,109610.0,109600.0,0.04187087]
[1749537906615,1.77792803,109610.0,109600.0,0.04187094]
[1749537907304,1.77792803,109610.0,109600.0,0.02485925]
[1749537907429,1.77792803,109610.0,109600.0,0.04187253]
[1749537907666,1.77792803,109610.0,109600.0,0.04187299]
[1749537907857,1.77792803,109610.0,109600.0,0.04187335]
[1749537908083,1.77792803,109610.0,109600.0,0.04187355]
[1749537908835,1.77792803,109610.0,109600.0,0.02485925]
[1749537909257,1.77792803,109610.0,109600.0,0.04187868]
[1749537909480,1.77792803,109610.0,109600.0,0.04187869]
[1749537909690,1.84572054,109610.0,109600.0,0.02485925]
[1749537909899,0.77019397,109610.0,109600.0,0.02485925]
[1749537910097,1.77788803,109610.0,109600.0,0.04187853]
[1749537910364,1.77788803,109610.0,109600.0,0.0418785]
[1749537910566,1.77788803,109610.0,109600.0,0.04187846]
[1749537910730,1.77788803,109610.0,109600.0,0.0418783]
[1749537910925,1.77788803,109610.0,109600.0,0.02485925]
[1749537911123,1.77788803,109610.0,109600.0,0.0418783]
[1749537911311,1.77788803,109610.0,109600.0,0.04187924]
[1749537911493,1.77788803,109610.0,109600.0,0.02485925]
[1749537911721,1.77788803,109610.0,109600.0,0.04187966]
[1749537912452,1.77788803,109610.0,109600.0,0.0418793]
[1749537912608,1.77788803,109610.0,109600.0,0.04187927]
[1749537912805,1.77788803,109610.0,109600.0,0.04187932]
[1749537913007,1.77788803,109610.0,109600.0,0.02485925]
[1749537913251,1.77788803,109610.0,109600.0,0.04187907]
[1749537913708,1.77788803,109610.0,109600.0,0.04187787]
[1749537914117,1.77788803,109610.0,109600.0,0.02485925]
[1749537914323,1.86968589,109610.0,109600.0,0.04187785]
[1749537914530,1.86968589,109610.0,109600.0,0.02485925]
[1749537915209,1.86968589,109610.0,109600.0,0.04187753]
[1749537915808,1.77788803,109610.0,109600.0,0.04187789]
[1749537916078,1.77788803,109610.0,109600.0,0.04187802]
[1749537916306,1.77788803,109610.0,109600.0,0.04187816]
[1749537916552,1.77788803,109610.0,109600.0,0.04187826]
[1749537916775,1.77788803,109610.0,109600.0,0.04187798]
[1749537917005,1.77788803,109610.0,109600.0,0.06771798]
[1749537917934,1.77788803,109610.0,109600.0,0.06771723]
[1749537918161,1.77788803,109610.0,109600.0,0.05069925]
[1749537918391,1.77788803,109610.0,109600.0,0.06771724]
[1749537918673,1.77784803,109610.0,109600.0,0.06771724]
[1749537919416,1.77784803,109610.0,109600.0,0.08159925]
[1749537919879,1.77784803,109610.0,109600.0,0.09861542]
[1749537920115,1.68196803,109610.0,109600.0,0.09861521]
[1749537920349,1.77784803,109610.0,109600.0,0.09861511]
[1749537920571,1.77784803,109610.0,109600.0,0.098615]
[1749537920794,1.68196803,109610.0,109600.0,0.098615]
[1749537921009,1.77788803,109610.0,109600.0,0.09861477]
[1749537921468,1.77788803,109610.0,109600.0,0.09861462]
[1749537922078,1.77788803,109610.0,109600.0,0.09861466]
[1749537922737,1.77788803,109610.0,109600.0,0.08159925]
[1749537922932,1.77788803,109610.0,109600.0,0.09861481]
[1749537923289,1.77788803,109610.0,109600.0,0.09861469]
[1749537924031,1.77788803,109610.0,109600.0,0.10712241]
[1749537924273,1.77788803,109610.0,109600.0,0.09861469]
[1749537924479,1.77788803,109610.0,109600.0,0.10712241]
[1749537924635,1.77788803,109610.0,109600.0,0.09010697]
[1749537924841,1.77788803,109610.0,109600.0,0.10712242]
[1749537925255,1.77788803,109610.0,109600.0,0.10712241]
[1749537925853,1.77788803,109610.0,109600.0,0.10712251]
[1749537926060,2.37353292,109610.0,109600.0,0.0503821]
[1749537926305,2.40423292,109610.0,109600.0,0.05038215]
[1749537926479,2.40423292,109610.0,109600.0,0.07622274]
[1749537927271,2.40423292,109610.0,109600.0,0.07622344]
[1749537927518,2.31243506,109610.0,109600.0,0.07622477]
[1749537927941,2.31243506,109610.0,109600.0,0.07622472]
[1749537928147,2.31243506,109610.0,109600.0,0.07622489]
[1749537928355,2.31243506,109610.0,109600.0,0.07622471]
[1749537928948,2.31243506,109610.0,109600.0,0.07622469]
[1749537929155,2.33273144,109610.0,109600.0,0.0677163]
[1749537929309,2.31243506,109610.0,109600.0,0.06771635]
[1749537929515,2.31243506,109610.0,109600.0,0.05069925]
[1749537930120,2.31243506,109610.0,109600.0,0.06771639]
[1749537930356,2.31243506,109610.0,109600.0,0.06771638]
[1749537931330,2.31243506,109610.0,109600.0,0.05069925]
[1749537932002,2.37989429,109610.0,109600.0,0.04187556]
[1749537932844,2.37989429,109610.0,109600.0,0.04187564]
[1749537933068,2.37989429,109610.0,109600.0,0.04187579]
[1749537935014,2.37989429,109610.0,109600.0,0.02485925]
[1749537935230,2.37989429,109610.0,109600.0,0.04187541]
[1749537935665,2.37989429,109610.0,109600.0,0.0418757]
[1749537936314,2.37989429,109610.0,109600.0,0.04187536]
[1749537936534,2.37989429,109610.0,109600.0,0.02485925]
[1749537936975,2.37989429,109610.0,109600.0,0.0418754]
[1749537938018,2.37989429,109610.0,109600.0,0.04187557]
[1749537938228,2.37989429,109610.0,109600.0,0.04187563]
[1749537938882,2.37989429,109610.0,109600.0,0.0418757]
[1749537939717,2.31243506,109610.0,109600.0,0.0418757]
[1749537939930,1.68196803,109610.0,109600.0,0.02485925]
[1749537940131,1.77780803,109610.0,109600.0,0.04187537]
[1749537940979,0.57704652,109600.0,109590.0,0.02725354]
[1749537941194,0.546164,109590.0,109580.0,0.0278]
[1749537941419,2.26202295,109590.0,109580.0,0.02794529]
[1749537941633,2.26202295,109590.0,109580.0,0.01069557]
[1749537941841,2.28942095,109590.0,109580.0,0.00218529]
[1749537942524,2.29042095,109590.0,109580.0,0.00218529]
[1749537942728,2.28942095,109590.0,109580.0,0.00218529]
[1749537943182,2.28942095,109590.0,109580.0,0.00318529]
[1749537944264,1.76905392,109590.0,109580.0,0.00318529]
[1749537944884,1.82689032,109590.0,109580.0,0.00318529]
[1749537945529,1.76905392,109590.0,109580.0,0.00318529]
[1749537951459,1.67305392,109590.0,109580.0,0.00318529]
[1749537951670,1.76893392,109590.0,109580.0,0.00318529]
[1749537952752,2.27278095,109590.0,109580.0,0.00318529]
[1749537962736,0.76123986,109590.0,109580.0,0.00318529]
[1749537962942,2.27278095,109590.0,109580.0,0.00318529]
[1749537963163,2.27278095,109590.0,109580.0,0.02890529]
[1749537963380,2.27261484,109590.0,109580.0,0.02890529]
[1749537963594,2.17673484,109590.0,109580.0,0.02890529]
[1749537963811,2.27253484,109590.0,109580.0,0.02890529]
[1749537964225,2.27253484,109590.0,109580.0,0.00318529]
[1749537964471,2.27253484,109590.0,109580.0,0.02890529]
[1749537967601,0.76099375,109590.0,109580.0,0.02890529]
[1749537967814,1.15449993,109590.0,109580.0,0.09858318]
[1749537968025,1.25025993,109590.0,109580.0,0.09858318]
[1749537968231,1.75410696,109590.0,109580.0,0.09858318]
[1749537968680,1.75410696,109590.0,109580.0,0.09857396]
[1749537969087,1.65834696,109590.0,109580.0,0.09857398]
[1749537969297,1.65834696,109590.0,109580.0,0.09857383]
[1749537969298,1.75410696,109590.0,109580.0,0.09857383]
[1749537969501,1.72670896,109590.0,109580.0,0.0815731]
[1749537969705,1.72670896,109590.0,109580.0,0.09857364]
[1749537970351,1.72670896,109590.0,109580.0,0.09858542]
[1749537970918,1.12710193,109590.0,109580.0,0.11784294]
[1749537971137,1.12710193,109590.0,109580.0,0.18925105]
[1749537971138,0.2832549,109590.0,109580.0,0.18925105]
[1749537971364,0.3790549,109590.0,109580.0,0.15297603]
[1749537971584,0.88290193,109590.0,109580.0,0.55297491]
[1749537971799,0.88290193,109590.0,109580.0,0.58922254]
[1749537972008,0.88290193,109590.0,109580.0,0.58921945]
[1749537972541,0.88290193,109590.0,109580.0,0.57222549]
[1749537972759,0.88294193,109590.0,109580.0,0.58921794]
[1749537973200,0.88294193,109590.0,109580.0,0.58921738]
[1749537973854,0.88294193,109590.0,109580.0,0.58920268]
[1749537974291,0.88294193,109590.0,109580.0,0.57222549]
[1749537974505,0.88294193,109590.0,109580.0,0.58920238]
[1749537974732,0.88294193,109590.0,109580.0,0.51782073]
[1749537976049,0.88294193,109590.0,109580.0,0.53479639]
[1749537976305,0.88294193,109590.0,109580.0,0.53479629]
[1749537976540,0.88294193,109590.0,109580.0,0.51782073]
[1749537976753,0.88294193,109590.0,109580.0,0.53479261]
[1749537977419,0.88298193,109590.0,109580.0,0.53479261]
[1749537977631,0.88298193,109590.0,109580.0,0.51782073]
[1749537977845,0.88298193,109590.0,109580.0,0.13478485]
[1749537978291,0.2832549,109590.0,109580.0,0.11782073]
[1749537978491,0.88208193,109590.0,109580.0,0.5891883]
[1749537978694,0.88208193,109590.0,109580.0,0.53478354]
[1749537978900,0.88208193,109590.0,109580.0,0.5891883]
[1749537979321,0.88208193,109590.0,109580.0,0.5891868]
[1749537979741,0.88208193,109590.0,109580.0,0.53478204]
[1749537980700,0.3782349,109590.0,109580.0,0.53478204]
[1749537980906,0.88208193,109590.0,109580.0,0.53478204]
[1749537981121,0.88208193,109590.0,109580.0,0.53477579]
[1749537981552,0.88208193,109590.0,109580.0,0.11782073]
[1749537981759,0.88208193,109590.0,109580.0,0.13477467]
[1749537981977,0.88208193,109590.0,109580.0,0.53477467]
[1749537982874,0.88208193,109590.0,109580.0,0.51782073]
[1749537984800,0.88208193,109590.0,109580.0,0.11782073]
[1749537985255,0.88204193,109590.0,109580.0,0.11782073]
[1749537985471,0.88204193,109590.0,109580.0,0.51782073]
[1749537985680,0.78620193,109590.0,109580.0,0.51782073]
[1749537985882,0.3782349,109590.0,109580.0,0.51782073]
[1749537986083,0.88208193,109590.0,109580.0,0.51782073]
[1749537986419,0.88208193,109590.0,109580.0,0.51774778]
[1749537986620,0.3782349,109590.0,109580.0,0.51774778]
[1749537986824,0.88208193,109590.0,109580.0,0.51774778]
[1749537987712,0.3782349,109590.0,109580.0,0.51774778]
[1749537987922,0.88208193,109590.0,109580.0,0.51774778]
[1749537988340,0.37807046,109590.0,109580.0,0.11774778]
[1749537988547,0.88191749,109590.0,109580.0,0.11774778]
[1749537988980,0.88191749,109590.0,109580.0,0.51774778]
[1749537989812,0.88191749,109590.0,109580.0,0.57215254]
[1749537991787,0.88191749,109590.0,109580.0,0.17215254]
[1749537992289,0.88191749,109590.0,109580.0,0.57215254]
[1749537995651,0.88191749,109590.0,109580.0,0.13590491]
[1749537996085,0.88191749,109590.0,109580.0,0.53590491]
[1749537996526,0.78603749,109590.0,109580.0,0.53590491]
[1749537996731,0.88171749,109590.0,109580.0,0.53590491]
[1749537997761,0.88167749,109590.0,109580.0,0.53590491]
[1749537999001,0.88167749,109590.0,109580.0,0.13590491]
[1749537999528,0.88167749,109590.0,109580.0,0.53590491]
[1749537999773,0.88167749,109590.0,109580.0,0.53589842]
[1749538000124,0.88167749,109590.0,109580.0,0.48150015]
[1749538000326,0.88167749,109590.0,109580.0,0.45578015]
[1749538000741,0.88167749,109590.0,109580.0,0.48150015]
[1749538002458,0.88167749,109590.0,109580.0,0.08150015]
[1749538002852,0.88167749,109590.0,109580.0,0.05980529]
[1749538003092,0.88167749,109590.0,109580.0,0.45980529]
[1749538003804,0.88167749,109590.0,109580.0,0.48157309]
[1749538006077,0.88167749,109590.0,109580.0,0.08157309]
[1749538006316,0.37783046,109590.0,109580.0,0.15413242]
[1749538006551,0.88167749,109590.0,109580.0,0.55413242]
[1749538008207,0.78603749,109590.0,109580.0,0.55413242]
[1749538008420,0.88139749,109590.0,109580.0,0.55413242]
[1749538009613,0.88139749,109590.0,109580.0,0.15413242]
[1749538010047,0.88139749,109590.0,109580.0,0.53883242]
[1749538012994,0.8812347,109590.0,109580.0,0.53883242]
[1749538013199,0.8812347,109590.0,109580.0,0.13883242]
[1749538013608,0.8812347,109590.0,109580.0,0.53883242]
[1749538014023,0.8812347,109590.0,109580.0,0.63883242]
[1749538016526,0.8812347,109590.0,109580.0,0.23883242]
[1749538016948,0.8812347,109590.0,109580.0,0.21311242]
[1749538017163,1.41668173,109590.0,109580.0,0.17939742]
[1749538017377,1.41668173,109590.0,109580.0,0.20511742]
[1749538020280,1.41668173,109590.0,109580.0,0.17939742]
[1749538020527,1.41668173,109590.0,109580.0,0.2410349]
[1749538023403,1.41668173,109590.0,109580.0,0.18659057]
[1749538023589,1.41668173,109590.0,109580.0,0.21378321]
[1749538023828,1.41668173,109590.0,109580.0,0.22227917]
[1749538024036,1.41668173,109590.0,109580.0,0.18600175]
[1749538024241,1.41668173,109590.0,109580.0,0.18600181]
[1749538024464,1.43122258,109590.0,109580.0,0.16064181]
[1749538024686,1.43122258,109590.0,109580.0,0.20299397]
[1749538025114,1.43122258,109590.0,109580.0,0.20299021]
[1749538025351,1.43122258,109590.0,109580.0,0.20299036]
[1749538025833,1.43122258,109590.0,109580.0,0.17750573]
[1749538027000,1.43122258,109590.0,109580.0,0.20298416]
[1749538027207,1.43122258,109590.0,109580.0,0.19449135]
[1749538027423,1.43122258,109590.0,109580.0,0.20297772]
[1749538027635,1.43122258,109590.0,109580.0,0.20297778]
[1749538027857,1.43122258,109590.0,109580.0,0.2029782]
[1749538028063,1.43122258,109590.0,109580.0,0.19448747]
[1749538028246,1.43122258,109590.0,109580.0,0.20297842]
[1749538028520,1.43122258,109590.0,109580.0,0.20297913]
[1749538028718,1.33586258,109590.0,109580.0,0.20297913]
[1749538028930,1.43106258,109590.0,109580.0,0.20297913]
[1749538029888,1.45845658,109590.0,109580.0,0.20297685]
[1749538030110,1.45845658,109590.0,109580.0,0.20297687]
[1749538030348,1.45845658,109590.0,109580.0,0.19448594]
[1749538030562,0.45076252,109590.0,109580.0,0.20297612]
[1749538030781,1.45845658,109590.0,109580.0,0.20297612]
[1749538031649,1.45845658,109590.0,109580.0,0.20297579]
[1749538031870,1.45845658,109590.0,109580.0,0.18599569]
[1749538032071,1.45845658,109590.0,109580.0,0.20297552]
[1749538032290,1.45845658,109590.0,109580.0,0.18599567]
[1749538032509,1.45845658,109590.0,109580.0,0.19448564]
[1749538032727,1.45845658,109590.0,109580.0,0.20297528]
[1749538033155,1.45845658,109590.0,109580.0,0.20297493]
[1749538033369,1.45845658,109590.0,109580.0,0.20297395]
[1749538033573,1.45845658,109590.0,109580.0,0.20297408]
[1749538033989,1.45845658,109590.0,109580.0,0.20297409]
[1749538034825,2.30230361,109590.0,109580.0,0.20297409]
[1749538035050,2.39410147,109590.0,109580.0,0.1588037]
[1749538035270,2.30230361,109590.0,109580.0,0.15031309]
[1749538035491,2.30230361,109590.0,109580.0,0.15880461]
[1749538035708,2.30230361,109590.0,109580.0,0.15880394]
[1749538035914,2.30230361,109590.0,109580.0,0.10031309]
[1749538037198,2.30214245,109590.0,109580.0,0.10031309]
[1749538037838,2.30214245,109590.0,109580.0,0.07854529]
[1749538038050,2.30214245,109590.0,109580.0,0.10027094]
[1749538038290,2.30214245,109590.0,109580.0,0.07854529]
[1749538039834,2.79504245,109590.0,109580.0,0.07854529]
[1749538041019,2.29119542,109590.0,109580.0,0.07854529]
[1749538042793,2.29119542,109590.0,109580.0,0.10026321]
[1749538045223,2.29119542,109590.0,109580.0,0.11723561]
[1749538045974,2.29119542,109590.0,109580.0,0.11723429]
[1749538046188,2.29119542,109590.0,109580.0,0.10026321]
[1749538046395,2.29119542,109590.0,109580.0,0.11723496]
[1749538047665,2.29119542,109590.0,109580.0,0.10026321]
[1749538048091,2.29119542,109590.0,109580.0,0.11723442]
[1749538049844,2.29119542,109590.0,109580.0,0.1172393]
[1749538050242,2.29119542,109590.0,109580.0,0.10026321]
[1749538050440,2.29119542,109590.0,109580.0,0.11723904]
[1749538050774,2.29119542,109590.0,109580.0,0.11723903]
[1749538051395,2.29119542,109590.0,109580.0,0.10026321]
[1749538051602,2.29119542,109590.0,109580.0,0.11723882]
[1749538051839,2.29119542,109590.0,109580.0,0.11723857]
[1749538052069,2.29119542,109590.0,109580.0,0.10026321]
[1749538052320,2.29119542,109590.0,109580.0,0.11723856]
[1749538052540,2.29119542,109590.0,109580.0,0.11723786]
[1749538052991,2.29119542,109590.0,109580.0,0.11723827]
[1749538053495,2.29119542,109590.0,109580.0,0.11724242]
[1749538053783,2.79504245,109590.0,109580.0,0.11724242]
[1749538054002,2.79504245,109590.0,109580.0,0.0955245]
[1749538054225,2.79504245,109590.0,109580.0,0.11725866]
[1749538054910,2.79504245,109590.0,109580.0,0.11725918]
[1749538055138,2.79504245,109590.0,109580.0,0.10027945]
[1749538055571,2.79504245,109590.0,109580.0,0.11725962]
[1749538056960,2.79504245,109590.0,109580.0,0.10027945]
[1749538057375,2.79504245,109590.0,109580.0,0.11726117]
[1749538057592,2.79504245,109590.0,109580.0,0.10027945]
[1749538057798,2.79504245,109590.0,109580.0,0.11726117]
[1749538058427,2.79504245,109590.0,109580.0,0.10027945]
[1749538058867,2.79504245,109590.0,109580.0,0.11726114]
[1749538059918,2.79504245,109590.0,109580.0,0.11726406]
[1749538060775,2.79504245,109590.0,109580.0,0.10027945]
[1749538060991,2.79504245,109590.0,109580.0,0.11726406]
[1749538061194,2.79488291,109590.0,109580.0,0.11726406]
[1749538061805,2.79488291,109590.0,109580.0,0.11726491]
[1749538062440,2.79488291,109590.0,109580.0,0.10027945]
[1749538062867,2.79488291,109590.0,109580.0,0.11726869]
[1749538064213,2.79488291,109590.0,109580.0,0.10027945]
[1749538064418,2.79488291,109590.0,109580.0,0.11726869]
[1749538064632,2.79488291,109590.0,109580.0,0.11727883]
[1749538065472,2.79488291,109590.0,109580.0,0.10027945]
[1749538065863,2.79488291,109590.0,109580.0,0.1172791]
[1749538066068,2.79488291,109590.0,109580.0,0.10027945]
[1749538066567,2.79488291,109590.0,109580.0,0.1172791]
[1749538067521,2.79488291,109590.0,109580.0,0.10027945]
[1749538067725,2.79488291,109590.0,109580.0,0.1172791]
[1749538067939,2.79488291,109590.0,109580.0,0.10027945]
[1749538068357,2.79488291,109590.0,109580.0,0.11727945]
[1749538069406,2.79488291,109590.0,109580.0,0.11727969]
[1749538069607,2.79488291,109590.0,109580.0,0.11674157]
[1749538069814,2.79488291,109590.0,109580.0,0.13374181]
[1749538070014,2.79488291,109590.0,109580.0,0.11674163]
[1749538070221,2.79488291,109590.0,109580.0,0.12524182]
[1749538070435,2.79418963,109590.0,109580.0,0.12524182]
[1749538070640,1.28264854,109590.0,109580.0,0.12524182]
[1749538070849,2.79418963,109590.0,109580.0,0.12524182]
[1749538071053,2.79418963,109590.0,109580.0,0.10824145]
[1749538071480,2.79418963,109590.0,109580.0,0.12524184]
[1749538071688,2.79418963,109590.0,109580.0,0.12524319]
[1749538072515,2.79418963,109590.0,109580.0,0.1252432]
[1749538072746,2.68358963,109590.0,109580.0,0.1252432]
[1749538072956,2.76258963,109590.0,109580.0,0.1252432]
[1749538073394,1.65969557,109590.0,109580.0,0.12524321]
[1749538073617,2.14900175,109590.0,109580.0,0.16650915]
[1749538073849,2.24420175,109590.0,109580.0,0.21978488]
[1749538074249,2.24420175,109590.0,109580.0,0.21978429]
[1749538074671,2.24420175,109590.0,109580.0,0.20278663]
[1749538074897,2.24420175,109590.0,109580.0,0.21977466]
[1749538075121,2.24420175,109590.0,109580.0,0.21977393]
[1749538075325,2.24420175,109590.0,109580.0,0.20278663]
[1749538075538,2.24420175,109590.0,109580.0,0.21977393]
[1749538076159,2.24420175,109590.0,109580.0,0.18349645]
[1749538076999,2.24420175,109590.0,109580.0,0.16650915]
[1749538077212,2.24420175,109590.0,109580.0,0.18349645]
[1749538077436,2.77768963,109590.0,109580.0,0.12703645]
[1749538077664,2.77768963,109590.0,109580.0,0.13540915]
[1749538077665,2.79418963,109590.0,109580.0,0.13540915]
[1749538077872,2.79418963,109590.0,109580.0,0.10824145]
[1749538078285,2.79418963,109590.0,109580.0,0.1252323]
[1749538078497,2.79418963,109590.0,109580.0,0.12523217]
[1749538078724,2.79418963,109590.0,109580.0,0.12523145]
[1749538079008,2.79418963,109590.0,109580.0,0.09987142]
[1749538079223,2.79418963,109590.0,109580.0,0.12523142]
[1749538080058,2.79418963,109590.0,109580.0,0.12523132]
[1749538080490,2.79418963,109590.0,109580.0,0.10824145]
[1749538080705,2.79418963,109590.0,109580.0,0.1252313]
[1749538081115,2.69898963,109590.0,109580.0,0.0998713]
[1749538081346,2.24416175,109590.0,109580.0,0.18365979]
[1749538081558,2.24416175,109590.0,109580.0,0.16666915]
[1749538081772,2.24416175,109590.0,109580.0,0.18365789]
[1749538081982,2.24416175,109590.0,109580.0,0.16666915]
[1749538082198,2.24416175,109590.0,109580.0,0.18365759]
[1749538082401,2.24416175,109590.0,109580.0,0.1836576]
[1749538082631,2.24416175,109590.0,109580.0,0.16825759]
[1749538082850,2.24416175,109590.0,109580.0,0.15235759]
[1749538083268,2.24416175,109590.0,109580.0,0.13536915]
[1749538083691,2.24416175,109590.0,109580.0,0.15235706]
[1749538084772,2.24416175,109590.0,109580.0,0.15235618]
[1749538085403,2.21686601,109590.0,109580.0,0.15235618]
[1749538085632,2.21670807,109590.0,109580.0,0.15235616]
[1749538085842,2.21670807,109590.0,109580.0,0.13536915]
[1749538086048,2.21670807,109590.0,109580.0,0.15235611]
[1749538086457,2.21670807,109590.0,109580.0,0.18485611]
[1749538086930,2.21670807,109590.0,109580.0,0.18485564]
[1749538087343,2.12154807,109590.0,109580.0,0.16786915]
[1749538087549,2.21670807,109590.0,109580.0,0.18485517]
[1749538088818,2.21670807,109590.0,109580.0,0.18485308]
[1749538088946,2.21670807,109590.0,109580.0,0.16786915]
[1749538089188,2.21670807,109590.0,109580.0,0.13536915]
[1749538089373,2.21670807,109590.0,109580.0,0.15235345]
[1749538090172,2.21670807,109590.0,109580.0,0.13536915]
[1749538090380,2.21670807,109590.0,109580.0,0.15235331]
[1749538090592,2.21670807,109590.0,109580.0,0.13536915]
[1749538091228,2.21670807,109590.0,109580.0,0.15235321]
[1749538092073,2.21670807,109590.0,109580.0,0.14439121]
[1749538092324,2.21670807,109590.0,109580.0,0.12740715]
[1749538092564,2.21670807,109590.0,109580.0,0.14439123]
[1749538092799,2.21670807,109590.0,109580.0,0.14439106]
[1749538093005,2.21670807,109590.0,109580.0,0.1443911]
[1749538093635,2.21670807,109590.0,109580.0,0.1744911]
[1749538093850,2.21670807,109590.0,109580.0,0.17449094]
[1749538094331,2.21670807,109590.0,109580.0,0.17449093]
[1749538094761,2.21670807,109590.0,109580.0,0.15750715]
[1749538094966,2.21670807,109590.0,109580.0,0.17449099]
[1749538095604,2.21670807,109590.0,109580.0,0.17449201]
[1749538095900,2.21670807,109590.0,109580.0,0.15750715]
[1749538096331,2.21670807,109590.0,109580.0,0.17449201]
[1749538096953,2.21670807,109590.0,109580.0,0.15949201]
[1749538097171,2.21670807,109590.0,109580.0,0.15949226]
[1749538097374,2.21670807,109590.0,109580.0,0.14250715]
[1749538097576,2.21670807,109590.0,109580.0,0.15949227]
[1749538097809,2.21670807,109590.0,109580.0,0.14250715]
[1749538097939,2.21670807,109590.0,109580.0,0.15949227]
[1749538098163,2.21670807,109590.0,109580.0,0.14439227]
[1749538098815,2.21670807,109590.0,109580.0,0.14439351]
[1749538099236,2.21670807,109590.0,109580.0,0.12740715]
[1749538099480,2.21670807,109590.0,109580.0,0.14439351]
[1749538099682,2.21670807,109590.0,109580.0,0.15939351]
[1749538100606,2.21670807,109590.0,109580.0,0.15939421]
[1749538100858,2.21670807,109590.0,109580.0,0.15939423]
[1749538101065,2.21670807,109590.0,109580.0,0.14240715]
[1749538101665,2.21670807,109590.0,109580.0,0.15939423]
[1749538102107,2.21666807,109590.0,109580.0,0.15939423]
[1749538102282,2.12154807,109590.0,109580.0,0.15939423]
[1749538102502,0.77375575,109590.0,109580.0,0.26731695]
[1749538102676,1.27765191,109590.0,109580.0,0.18688378]
[1749538102880,0.78288042,109590.0,109580.0,0.22432102]
[1749538103275,0.01568416,109590.0,109580.0,0.2945977]
[1749538103483,0.02737417,109590.0,109580.0,0.3575177]
[1749538103688,0.21899699,109590.0,109580.0,0.35747867]
[1749538104102,0.21899699,109590.0,109580.0,0.38867867]
[1749538104524,0.0364985,109590.0,109580.0,0.3876744]
[1749538104997,0.02737367,109590.0,109580.0,0.3876744]
[1749538105213,0.018249,109590.0,109580.0,0.37073713]
[1749538105433,0.018249,109590.0,109580.0,0.38767437]
[1749538105646,0.018249,109590.0,109580.0,0.78767437]
[1749538106208,0.018249,109590.0,109580.0,0.7876551]
[1749538106410,0.0182485,109590.0,109580.0,0.77073713]
[1749538106623,0.0182485,109590.0,109580.0,0.9876551]
[1749538106828,0.0182485,109590.0,109580.0,0.97073713]
[1749538107034,0.0182485,109590.0,109580.0,0.9876551]
[1749538107236,0.03649767,109590.0,109580.0,0.9876551]
[1749538107440,0.0182485,109590.0,109580.0,0.9876551]
[1749538107617,0.03649767,109590.0,109580.0,0.9876551]
[1749538107992,0.03649767,109590.0,109580.0,0.9876599]
[1749538108202,0.03649767,109590.0,109580.0,0.97073713]
[1749538108405,0.03649767,109590.0,109580.0,0.98766054]
[1749538108610,0.03649758,109590.0,109580.0,0.91504219]
[1749538109022,0.04562233,109590.0,109580.0,0.91504219]
[1749538109231,0.04562225,109590.0,109580.0,0.91504219]
[1749538109758,0.03649758,109590.0,109580.0,0.89811878]
[1749538109966,0.03649758,109590.0,109580.0,0.91503552]
[1749538110178,0.01809215,109590.0,109580.0,0.89811878]
[1749538110394,0.02721665,109590.0,109580.0,0.91503532]
[1749538110612,0.02721665,109590.0,109580.0,0.91503578]
[1749538110845,0.71374958,109600.0,109590.0,0.0315]
[1749538111053,0.71374958,109600.0,109590.0,0.14349894]
[1749538111266,0.20985342,109600.0,109590.0,0.14349894]
[1749538111472,0.20985342,109600.0,109590.0,0.56041611]
[1749538111673,0.71374958,109600.0,109590.0,0.56041612]
[1749538111845,0.71374958,109600.0,109590.0,0.56041627]
[1749538112942,0.71374958,109600.0,109590.0,0.56935162]
[1749538113146,0.71374958,109600.0,109590.0,0.56934919]
[1749538113363,0.71374958,109600.0,109590.0,0.55243429]
[1749538113565,0.71374958,109600.0,109590.0,0.56934913]
[1749538113770,0.20985342,109600.0,109590.0,0.55243429]
[1749538113983,0.01824759,109600.0,109590.0,0.56934916]
[1749538114197,0.52314375,109600.0,109590.0,0.55243429]
[1749538114403,0.01012342,109600.0,109590.0,0.56934823]
[1749538114656,0.01012342,109600.0,109590.0,0.51632838]
[1749538114657,0.02837101,109600.0,109590.0,0.51632838]
[1749538114879,0.001,109600.0,109590.0,0.97668838]
[1749538115094,0.001,109600.0,109590.0,0.99508884]
[1749538115749,0.001,109600.0,109590.0,1.59078286]
[1749538116179,0.0022,109630.0,109620.0,0.0312]
[1749538116400,0.0022,109630.0,109620.0,0.22963265]
[1749538116615,0.02956317,109630.0,109620.0,0.50699251]
[1749538116850,0.02956309,109630.0,109620.0,0.62735251]
[1749538117545,0.02049031,109630.0,109620.0,0.62835251]
[1749538117757,0.02961148,109630.0,109620.0,0.62835251]
[1749538118183,0.0387329,109630.0,109620.0,0.50799251]
[1749538118417,0.00224839,109630.0,109620.0,0.96835251]
[1749538118642,0.00224839,109630.0,109620.0,0.79393416]
[1749538118853,0.00224839,109630.0,109620.0,0.98941196]
[1749538119488,0.00224839,109630.0,109620.0,0.91733416]
[1749538119929,0.01136931,109630.0,109620.0,0.91733416]
[1749538120572,0.01136931,109630.0,109620.0,0.79697416]
[1749538120779,0.01136931,109630.0,109620.0,0.91733416]
[1749538121001,0.0204904,109630.0,109620.0,0.91733416]
[1749538121213,0.02961157,109630.0,109620.0,0.97121202]
[1749538121420,0.0204904,109630.0,109620.0,0.97121202]
[1749538121844,0.02961165,109630.0,109620.0,0.97121202]
[1749538122056,0.0204904,109630.0,109620.0,0.97121202]
[1749538122712,0.02049048,109630.0,109620.0,0.97121202]
[1749538124024,0.02049048,109630.0,109620.0,0.85085202]
[1749538124230,0.0204904,109630.0,109620.0,0.97117202]
[1749538124459,0.02961157,109630.0,109620.0,0.97117202]
[1749538125150,0.03873291,109630.0,109620.0,0.97117202]
[1749538125362,0.02961157,109630.0,109620.0,0.97117202]
[1749538125566,0.03873282,109630.0,109620.0,0.97117202]
[1749538125993,0.03873282,109630.0,109620.0,0.85085202]
[1749538126221,0.02961157,109630.0,109620.0,0.97117202]
[1749538127066,0.04785416,109630.0,109620.0,0.97117202]
[1749538127544,0.02049065,109630.0,109620.0,0.97117202]
[1749538127979,0.02961199,109630.0,109620.0,0.97117202]
[1749538128405,0.02961199,109630.0,109620.0,0.91729416]
[1749538129522,0.02049065,109630.0,109620.0,0.91729416]
[1749538129757,0.02961157,109630.0,109620.0,0.91729416]
[1749538130458,0.02961157,109630.0,109620.0,0.98937196]